[Event "Titled Tuesday Blitz December 13 Early 2022"]
[White "Roque Sola, Jose Luis"]
[Black "Todorovic, Bojan"]
[WhiteFideId "5120390"]
[BlackFideId "917087"]
[WhiteElo "2117"]
[BlackElo "2266"]
[Result "0-1"]
[Round "06"]
[TimeControl "180+1"]
[Date "2022.12.14"]
[WhiteClock "0:00:10"]
[BlackClock "0:00:48"]

1. c4 {[%clk 0:03:00]}  g6 {[%clk 0:02:58]} 2. Nf3 {[%clk 0:02:59]}  Bg7 {[%clk 0:02:58]} 3. g3 {[%clk 0:02:59]}  Nf6 {[%clk 0:02:58]} 4. Bg2 {[%clk 0:02:59]}  O-O {[%clk 0:02:58]} 5. O-O {[%clk 0:02:59]}  d6 {[%clk 0:02:57]} 6. Nc3 {[%clk 0:02:58]}  c6 {[%clk 0:02:56]} 7. Rb1 {[%clk 0:02:55]}  a5 {[%clk 0:02:54]} 8. a3 {[%clk 0:02:55]}  e5 {[%clk 0:02:40]} 9. d3 {[%clk 0:02:55]}  h6 {[%clk 0:02:38]} 10. b4 {[%clk 0:02:53]}  axb4 {[%clk 0:02:38]} 11. axb4 {[%clk 0:02:54]}  Be6 {[%clk 0:02:32]} 12. Bb2 {[%clk 0:02:21]}  Nbd7 {[%clk 0:02:17]} 13. Ra1 {[%clk 0:01:57]}  Qb6 {[%clk 0:02:10]} 14. b5 {[%clk 0:01:47]}  Nc5 {[%clk 0:01:53]} 15. Nd2 {[%clk 0:01:34]}  d5 {[%clk 0:01:47]} 16. cxd5 {[%clk 0:01:28]}  cxd5 {[%clk 0:01:44]} 17. Qc2 {[%clk 0:00:59]}  Rac8 {[%clk 0:01:44]} 18. Qb1 {[%clk 0:00:54]}  Rfd8 {[%clk 0:01:36]} 19. Ba3 {[%clk 0:00:47]}  e4 {[%clk 0:01:08]} 20. Bxc5 {[%clk 0:00:43]}  Qxc5 {[%clk 0:01:08]} 21. Na4 {[%clk 0:00:39]}  Qc2 {[%clk 0:01:07]} 22. Ra2 {[%clk 0:00:15]}  Qxb1 {[%clk 0:00:59]} 23. Nxb1 {[%clk 0:00:16]}  exd3 {[%clk 0:00:51]} 24. exd3 {[%clk 0:00:17]}  Bf5 {[%clk 0:00:51]} 25. Nb6 {[%clk 0:00:14]}  Rc5 {[%clk 0:00:48]} 26. d4 {[%clk 0:00:14]}  Rxb5 {[%clk 0:00:48]} 27. Na8 {[%clk 0:00:10]} 0-1


[Site "https://www.chess.com"]

[Event "Titled Tuesday Blitz December 13 Early 2022"]
[White "Rosenberg, Evan S"]
[Black "Lacasa Diaz, Jose Antonio"]
[WhiteFideId "2019299"]
[BlackFideId "2203375"]
[WhiteElo "2416"]
[BlackElo "2338"]
[Result "1/2-1/2"]
[Round "06"]
[TimeControl "180+1"]
[Date "2022.12.14"]
[WhiteClock "0:00:14"]
[BlackClock "0:00:10"]

1. d4 {[%clk 0:03:00]}  d5 {[%clk 0:02:57]} 2. Nf3 {[%clk 0:03:01]}  e6 {[%clk 0:02:56]} 3. g3 {[%clk 0:02:58]}  c5 {[%clk 0:02:56]} 4. Bg2 {[%clk 0:02:57]}  Nc6 {[%clk 0:02:56]} 5. O-O {[%clk 0:02:57]}  Nf6 {[%clk 0:02:56]} 6. c4 {[%clk 0:02:55]}  cxd4 {[%clk 0:02:57]} 7. Nxd4 {[%clk 0:02:52]}  Bc5 {[%clk 0:02:57]} 8. Nb3 {[%clk 0:02:52]}  Bb6 {[%clk 0:02:57]} 9. Nc3 {[%clk 0:02:47]}  O-O {[%clk 0:02:28]} 10. cxd5 {[%clk 0:02:45]}  Nxd5 {[%clk 0:02:28]} 11. Nxd5 {[%clk 0:02:45]}  exd5 {[%clk 0:02:28]} 12. Qxd5 {[%clk 0:02:45]}  Qxd5 {[%clk 0:02:16]} 13. Bxd5 {[%clk 0:02:44]}  Nb4 {[%clk 0:02:04]} 14. Bf3 {[%clk 0:02:36]}  Be6 {[%clk 0:01:25]} 15. Bd2 {[%clk 0:02:29]}  Nxa2 {[%clk 0:01:17]} 16. Rxa2 {[%clk 0:02:25]}  Bxb3 {[%clk 0:01:16]} 17. Ra3 {[%clk 0:02:25]}  Bc4 {[%clk 0:00:57]} 18. Rc1 {[%clk 0:02:16]}  Bb5 {[%clk 0:00:53]} 19. Bxb7 {[%clk 0:02:06]}  Rad8 {[%clk 0:00:51]} 20. Bb4 {[%clk 0:01:57]}  Rfe8 {[%clk 0:00:47]} 21. e3 {[%clk 0:01:41]}  Be2 {[%clk 0:00:22]} 22. Bg2 {[%clk 0:01:36]}  h5 {[%clk 0:00:20]} 23. h4 {[%clk 0:01:35]}  g6 {[%clk 0:00:19]} 24. Re1 {[%clk 0:01:18]}  Bg4 {[%clk 0:00:18]} 25. Bc3 {[%clk 0:01:14]}  Re6 {[%clk 0:00:15]} 26. Kh2 {[%clk 0:01:11]}  Red6 {[%clk 0:00:14]} 27. Raa1 {[%clk 0:01:01]}  R6d7 {[%clk 0:00:12]} 28. Bf6 {[%clk 0:00:59]}  Rc8 {[%clk 0:00:11]} 29. f3 {[%clk 0:00:58]}  Be6 {[%clk 0:00:10]} 30. Bd4 {[%clk 0:00:41]}  Bxd4 {[%clk 0:00:09]} 31. exd4 {[%clk 0:00:42]}  Rxd4 {[%clk 0:00:08]} 32. Rxa7 {[%clk 0:00:43]}  Rd2 {[%clk 0:00:09]} 33. Kh1 {[%clk 0:00:24]}  Rxb2 {[%clk 0:00:08]} 34. f4 {[%clk 0:00:08]}  Rcc2 {[%clk 0:00:07]} 35. Bf3 {[%clk 0:00:06]}  Rh2+ {[%clk 0:00:06]} 36. Kg1 {[%clk 0:00:06]}  Rhd2 {[%clk 0:00:06]} 37. Ra8+ {[%clk 0:00:05]}  Kg7 {[%clk 0:00:05]} 38. Ra7 {[%clk 0:00:06]}  Kf6 {[%clk 0:00:06]} 39. Rb7 {[%clk 0:00:06]}  Rxb7 {[%clk 0:00:04]} 40. Bxb7 {[%clk 0:00:07]}  Rd3 {[%clk 0:00:04]} 41. Kf2 {[%clk 0:00:05]}  Rd2+ {[%clk 0:00:04]} 42. Re2 {[%clk 0:00:05]}  Rxe2+ {[%clk 0:00:05]} 43. Kxe2 {[%clk 0:00:06]}  Bf5 {[%clk 0:00:05]} 44. Kf3 {[%clk 0:00:06]}  Bg4+ {[%clk 0:00:05]} 45. Kf2 {[%clk 0:00:06]}  Be6 {[%clk 0:00:05]} 46. Bf3 {[%clk 0:00:07]}  Bf5 {[%clk 0:00:06]} 47. Ke3 {[%clk 0:00:07]}  Be6 {[%clk 0:00:06]} 48. Be4 {[%clk 0:00:07]}  Bg4 {[%clk 0:00:06]} 49. Bf3 {[%clk 0:00:07]}  Bf5 {[%clk 0:00:06]} 50. Be2 {[%clk 0:00:08]}  Be6 {[%clk 0:00:06]} 51. Bd3 {[%clk 0:00:08]}  Bd7 {[%clk 0:00:06]} 52. Kd4 {[%clk 0:00:09]}  Bg4 {[%clk 0:00:06]} 53. Kc5 {[%clk 0:00:09]}  Bf3 {[%clk 0:00:06]} 54. Kd6 {[%clk 0:00:09]}  Bd1 {[%clk 0:00:06]} 55. Kd7 {[%clk 0:00:09]}  Ba4+ {[%clk 0:00:06]} 56. Kd8 {[%clk 0:00:10]}  Bb3 {[%clk 0:00:06]} 57. Ke8 {[%clk 0:00:10]}  Ba2 {[%clk 0:00:06]} 58. Kf8 {[%clk 0:00:10]}  Bb3 {[%clk 0:00:06]} 59. Be4 {[%clk 0:00:11]}  Ba2 {[%clk 0:00:06]} 60. Bc6 {[%clk 0:00:11]}  Bb3 {[%clk 0:00:06]} 61. Bf3 {[%clk 0:00:11]}  Ba2 {[%clk 0:00:06]} 62. Be2 {[%clk 0:00:11]}  Bb3 {[%clk 0:00:07]} 63. Bd3 {[%clk 0:00:11]}  Bd5 {[%clk 0:00:07]} 64. Be2 {[%clk 0:00:10]}  Be6 {[%clk 0:00:07]} 65. Bf3 {[%clk 0:00:10]}  Bc4 {[%clk 0:00:07]} 66. Bc6 {[%clk 0:00:10]}  Bb3 {[%clk 0:00:08]} 67. Be8 {[%clk 0:00:10]}  Ba2 {[%clk 0:00:08]} 68. Bb5 {[%clk 0:00:10]}  Bb3 {[%clk 0:00:08]} 69. Be2 {[%clk 0:00:10]}  Ba2 {[%clk 0:00:04]} 70. Ke8 {[%clk 0:00:10]}  Bb3 {[%clk 0:00:04]} 71. Kd7 {[%clk 0:00:11]}  Ba2 {[%clk 0:00:04]} 72. Kd6 {[%clk 0:00:12]}  Bb3 {[%clk 0:00:05]} 73. Kc5 {[%clk 0:00:12]}  Ba2 {[%clk 0:00:06]} 74. Kd4 {[%clk 0:00:13]}  Be6 {[%clk 0:00:06]} 75. Ke3 {[%clk 0:00:13]}  Ba2 {[%clk 0:00:07]} 76. Bf3 {[%clk 0:00:13]}  Be6 {[%clk 0:00:08]} 77. Kf2 {[%clk 0:00:13]}  Bf5 {[%clk 0:00:09]} 78. Kg2 {[%clk 0:00:13]}  Be6 {[%clk 0:00:10]} 79. Kf2 {[%clk 0:00:14]} 1/2-1/2


[Site "https://www.chess.com"]

[Event "Titled Tuesday Blitz December 13 Early 2022"]
[White "Sargissyan, Sargis"]
[Black "Fernandez Garcia, Gumersindo"]
[WhiteFideId "13303210"]
[BlackFideId "24516740"]
[WhiteElo "2109"]
[BlackElo "2140"]
[Result "1-0"]
[Round "06"]
[TimeControl "180+1"]
[Date "2022.12.14"]
[WhiteClock "0:00:42"]
[BlackClock "0:00:25"]

1. e4 {[%clk 0:02:56]}  Nf6 {[%clk 0:02:53]} 2. e5 {[%clk 0:02:55]}  Nd5 {[%clk 0:02:53]} 3. Nc3 {[%clk 0:02:56]}  Nxc3 {[%clk 0:02:53]} 4. dxc3 {[%clk 0:02:57]}  d6 {[%clk 0:02:54]} 5. Bc4 {[%clk 0:02:51]}  Nc6 {[%clk 0:02:53]} 6. Nf3 {[%clk 0:02:47]}  dxe5 {[%clk 0:02:46]} 7. Qxd8+ {[%clk 0:02:46]}  Nxd8 {[%clk 0:02:41]} 8. Nxe5 {[%clk 0:02:46]}  f6 {[%clk 0:02:41]} 9. Nd3 {[%clk 0:02:42]}  e5 {[%clk 0:02:42]} 10. Be3 {[%clk 0:02:38]}  Be6 {[%clk 0:02:41]} 11. Bb5+ {[%clk 0:02:30]}  c6 {[%clk 0:02:40]} 12. Ba4 {[%clk 0:02:30]}  Kf7 {[%clk 0:02:33]} 13. O-O-O {[%clk 0:02:20]}  b5 {[%clk 0:02:31]} 14. Bb3 {[%clk 0:02:20]}  Nb7 {[%clk 0:02:30]} 15. Nb4 {[%clk 0:02:04]}  Bxb3 {[%clk 0:01:58]} 16. cxb3 {[%clk 0:02:01]}  Bxb4 {[%clk 0:01:55]} 17. cxb4 {[%clk 0:02:00]}  Ke7 {[%clk 0:01:50]} 18. Bc5+ {[%clk 0:01:34]}  Ke6 {[%clk 0:01:43]} 19. Be3 {[%clk 0:01:32]}  a6 {[%clk 0:01:34]} 20. Bb6 {[%clk 0:01:30]}  Rhe8 {[%clk 0:01:26]} 21. Kc2 {[%clk 0:01:30]}  Re7 {[%clk 0:01:26]} 22. Rd3 {[%clk 0:01:18]}  Rd7 {[%clk 0:01:24]} 23. Rxd7 {[%clk 0:01:18]}  Kxd7 {[%clk 0:01:25]} 24. Rd1+ {[%clk 0:01:18]}  Ke6 {[%clk 0:01:25]} 25. Rd3 {[%clk 0:01:10]}  Rc8 {[%clk 0:01:17]} 26. a3 {[%clk 0:01:10]}  c5 {[%clk 0:01:15]} 27. bxc5 {[%clk 0:01:09]}  Nxc5 {[%clk 0:01:16]} 28. Rc3 {[%clk 0:01:07]}  Rc6 {[%clk 0:00:23]} 29. Bxc5 {[%clk 0:01:06]}  g6 {[%clk 0:00:24]} 30. b4 {[%clk 0:01:05]}  f5 {[%clk 0:00:24]} 31. Rd3 {[%clk 0:01:06]}  e4 {[%clk 0:00:24]} 32. Rd8 {[%clk 0:01:06]}  f4 {[%clk 0:00:22]} 33. Kd2 {[%clk 0:01:05]}  h5 {[%clk 0:00:22]} 34. Ke2 {[%clk 0:01:04]}  Kf5 {[%clk 0:00:22]} 35. Rf8+ {[%clk 0:01:04]}  Ke5 {[%clk 0:00:22]} 36. h4 {[%clk 0:01:01]}  Kd5 {[%clk 0:00:21]} 37. b3 {[%clk 0:01:01]}  a5 {[%clk 0:00:20]} 38. Rxf4 {[%clk 0:01:00]}  axb4 {[%clk 0:00:20]} 39. axb4 {[%clk 0:01:00]}  Ke5 {[%clk 0:00:20]} 40. Rf8 {[%clk 0:00:59]}  Ra6 {[%clk 0:00:21]} 41. Ke3 {[%clk 0:00:58]}  Ra3 {[%clk 0:00:21]} 42. Re8+ {[%clk 0:00:57]}  Kf5 {[%clk 0:00:21]} 43. Rxe4 {[%clk 0:00:54]}  Rxb3+ {[%clk 0:00:21]} 44. Kd4 {[%clk 0:00:55]}  Rb2 {[%clk 0:00:21]} 45. Re5+ {[%clk 0:00:55]}  Kf6 {[%clk 0:00:20]} 46. Be7+ {[%clk 0:00:48]}  Kf7 {[%clk 0:00:18]} 47. f3 {[%clk 0:00:43]}  Rd2+ {[%clk 0:00:17]} 48. Ke3 {[%clk 0:00:42]}  Rxg2 {[%clk 0:00:17]} 49. Bg5 {[%clk 0:00:41]}  Rb2 {[%clk 0:00:16]} 50. Rxb5 {[%clk 0:00:41]}  Rb3+ {[%clk 0:00:17]} 51. Kf4 {[%clk 0:00:41]}  Ke6 {[%clk 0:00:18]} 52. Rb6+ {[%clk 0:00:41]}  Kd5 {[%clk 0:00:18]} 53. Rxg6 {[%clk 0:00:40]}  Rxb4+ {[%clk 0:00:19]} 54. Kg3 {[%clk 0:00:40]}  Ke5 {[%clk 0:00:19]} 55. Rh6 {[%clk 0:00:39]}  Kf5 {[%clk 0:00:19]} 56. Rxh5 {[%clk 0:00:38]}  Kg6 {[%clk 0:00:19]} 57. Rh6+ {[%clk 0:00:39]}  Kg7 {[%clk 0:00:20]} 58. Ra6 {[%clk 0:00:39]}  Rb5 {[%clk 0:00:21]} 59. Kg4 {[%clk 0:00:39]}  Rb7 {[%clk 0:00:21]} 60. f4 {[%clk 0:00:39]}  Rc7 {[%clk 0:00:21]} 61. h5 {[%clk 0:00:40]}  Rb7 {[%clk 0:00:22]} 62. h6+ {[%clk 0:00:40]}  Kh7 {[%clk 0:00:22]} 63. Kh5 {[%clk 0:00:40]}  Rd7 {[%clk 0:00:23]} 64. Re6 {[%clk 0:00:40]}  Rb7 {[%clk 0:00:23]} 65. Re7+ {[%clk 0:00:40]}  Rxe7 {[%clk 0:00:23]} 66. Bxe7 {[%clk 0:00:41]}  Kg8 {[%clk 0:00:24]} 67. Kg6 {[%clk 0:00:41]}  Kh8 {[%clk 0:00:23]} 68. Bf6+ {[%clk 0:00:41]}  Kg8 {[%clk 0:00:24]} 69. h7+ {[%clk 0:00:42]}  Kf8 {[%clk 0:00:25]} 70. h8=R# {[%clk 0:00:42]} 1-0


[Site "https://www.chess.com"]

[Event "Titled Tuesday Blitz December 13 Early 2022"]
[White "Schut, Han"]
[Black "Sonnenschein, Philipp"]
[WhiteFideId "1005561"]
[BlackFideId "16250877"]
[WhiteElo "2024"]
[BlackElo "2224"]
[Result "1-0"]
[Round "06"]
[TimeControl "180+1"]
[Date "2022.12.14"]
[WhiteClock "0:00:02"]
[BlackClock "0:00:01"]

1. e4 {[%clk 0:03:00]}  c5 {[%clk 0:02:58]} 2. Nf3 {[%clk 0:03:00]}  Nc6 {[%clk 0:02:58]} 3. d4 {[%clk 0:03:00]}  cxd4 {[%clk 0:02:58]} 4. Nxd4 {[%clk 0:03:01]}  Nf6 {[%clk 0:02:58]} 5. Nc3 {[%clk 0:03:01]}  d6 {[%clk 0:02:58]} 6. Bg5 {[%clk 0:02:59]}  e6 {[%clk 0:02:58]} 7. Qd2 {[%clk 0:02:55]}  a6 {[%clk 0:02:56]} 8. O-O-O {[%clk 0:02:54]}  Bd7 {[%clk 0:02:54]} 9. f4 {[%clk 0:02:52]}  Be7 {[%clk 0:02:42]} 10. Nxc6 {[%clk 0:02:39]}  Bxc6 {[%clk 0:02:40]} 11. Bd3 {[%clk 0:02:38]}  h6 {[%clk 0:02:33]} 12. Bxf6 {[%clk 0:02:29]}  Bxf6 {[%clk 0:02:33]} 13. Rhe1 {[%clk 0:02:22]}  b5 {[%clk 0:02:21]} 14. Nd5 {[%clk 0:02:07]}  O-O {[%clk 0:02:10]} 15. Nxf6+ {[%clk 0:01:59]}  Qxf6 {[%clk 0:02:11]} 16. g4 {[%clk 0:01:55]}  Rfc8 {[%clk 0:02:00]} 17. h4 {[%clk 0:01:51]}  Qxh4 {[%clk 0:01:41]} 18. Rh1 {[%clk 0:01:51]}  Qe7 {[%clk 0:01:33]} 19. g5 {[%clk 0:01:51]}  e5 {[%clk 0:01:17]} 20. gxh6 {[%clk 0:01:48]}  g6 {[%clk 0:01:16]} 21. f5 {[%clk 0:01:41]}  Kh7 {[%clk 0:01:13]} 22. Rhg1 {[%clk 0:00:54]}  Rg8 {[%clk 0:01:11]} 23. Qf2 {[%clk 0:00:35]}  g5 {[%clk 0:00:55]} 24. f6 {[%clk 0:00:24]}  Qe6 {[%clk 0:00:53]} 25. Be2 {[%clk 0:00:19]}  Rg6 {[%clk 0:00:51]} 26. Bg4 {[%clk 0:00:18]}  Qxa2 {[%clk 0:00:44]} 27. Bf5 {[%clk 0:00:16]}  Qa1+ {[%clk 0:00:30]} 28. Kd2 {[%clk 0:00:16]}  Qxb2 {[%clk 0:00:30]} 29. Rxg5 {[%clk 0:00:16]}  Qb4+ {[%clk 0:00:19]} 30. Kc1 {[%clk 0:00:14]}  d5 {[%clk 0:00:12]} 31. exd5 {[%clk 0:00:11]}  Bxd5 {[%clk 0:00:08]} 32. Rxd5 {[%clk 0:00:08]}  Qa3+ {[%clk 0:00:07]} 33. Kd2 {[%clk 0:00:06]}  b4 {[%clk 0:00:07]} 34. Rxg6 {[%clk 0:00:05]}  Qc3+ {[%clk 0:00:06]} 35. Kc1 {[%clk 0:00:05]}  fxg6 {[%clk 0:00:06]} 36. Rd7+ {[%clk 0:00:04]}  Kh8 {[%clk 0:00:06]} 37. Bxg6 {[%clk 0:00:03]}  Rc8 {[%clk 0:00:04]} 38. Rh7+ {[%clk 0:00:01]}  Kg8 {[%clk 0:00:04]} 39. Rg7+ {[%clk 0:00:02]}  Kh8 {[%clk 0:00:05]} 40. h7 {[%clk 0:00:03]}  Qa1+ {[%clk 0:00:03]} 41. Kd2 {[%clk 0:00:02]}  Rd8+ {[%clk 0:00:04]} 42. Ke3 {[%clk 0:00:02]}  Qd4+ {[%clk 0:00:04]} 43. Kf3 {[%clk 0:00:03]}  Qf4+ {[%clk 0:00:03]} 44. Kg2 {[%clk 0:00:04]}  Qg4+ {[%clk 0:00:02]} 45. Kh2 {[%clk 0:00:02]}  Rd1 {[%clk 0:00:01]} 46. Rg8# {[%clk 0:00:02]} 1-0


[Site "https://www.chess.com"]

[Event "Titled Tuesday Blitz December 13 Early 2022"]
[White "Shtompel, Yuriy"]
[Black "De Souza, Cristiano Gomes"]
[WhiteFideId "14168278"]
[BlackFideId "2151758"]
[WhiteElo "1844"]
[BlackElo "2068"]
[Result "0-1"]
[Round "06"]
[TimeControl "180+1"]
[Date "2022.12.14"]
[WhiteClock "0:00:03"]
[BlackClock "0:00:10"]

1. e4 {[%clk 0:03:00]}  c5 {[%clk 0:02:59]} 2. Nf3 {[%clk 0:02:58]}  d6 {[%clk 0:02:59]} 3. d4 {[%clk 0:02:58]}  cxd4 {[%clk 0:02:59]} 4. Nxd4 {[%clk 0:02:59]}  Nf6 {[%clk 0:02:59]} 5. Nc3 {[%clk 0:02:59]}  a6 {[%clk 0:02:57]} 6. Be2 {[%clk 0:02:34]}  e5 {[%clk 0:02:56]} 7. Nb3 {[%clk 0:02:33]}  Be6 {[%clk 0:02:56]} 8. Be3 {[%clk 0:02:05]}  Be7 {[%clk 0:02:54]} 9. O-O {[%clk 0:01:53]}  O-O {[%clk 0:02:52]} 10. Nd5 {[%clk 0:01:41]}  Nxe4 {[%clk 0:02:47]} 11. Bb6 {[%clk 0:01:39]}  Qd7 {[%clk 0:02:40]} 12. Nc7 {[%clk 0:01:18]}  Nc6 {[%clk 0:02:40]} 13. Re1 {[%clk 0:01:09]}  Rac8 {[%clk 0:02:35]} 14. Nxe6 {[%clk 0:01:00]}  Qxe6 {[%clk 0:02:32]} 15. Bf3 {[%clk 0:00:55]}  Nf6 {[%clk 0:02:30]} 16. Bxc6 {[%clk 0:00:51]}  Rxc6 {[%clk 0:02:29]} 17. Nd4 {[%clk 0:00:51]}  Qc4 {[%clk 0:02:13]} 18. Nxc6 {[%clk 0:00:51]}  bxc6 {[%clk 0:02:09]} 19. a4 {[%clk 0:00:47]}  e4 {[%clk 0:02:06]} 20. b3 {[%clk 0:00:44]}  Qe6 {[%clk 0:02:03]} 21. Qd2 {[%clk 0:00:40]}  d5 {[%clk 0:02:03]} 22. Qc3 {[%clk 0:00:37]}  Bd6 {[%clk 0:02:02]} 23. Bc5 {[%clk 0:00:36]}  Be5 {[%clk 0:02:01]} 24. Bd4 {[%clk 0:00:35]}  Bb8 {[%clk 0:01:56]} 25. g3 {[%clk 0:00:31]}  Rc8 {[%clk 0:01:51]} 26. b4 {[%clk 0:00:28]}  Ne8 {[%clk 0:01:44]} 27. f3 {[%clk 0:00:27]}  f5 {[%clk 0:01:34]} 28. fxe4 {[%clk 0:00:27]}  fxe4 {[%clk 0:01:33]} 29. Rf1 {[%clk 0:00:27]}  Rc7 {[%clk 0:01:26]} 30. Be5 {[%clk 0:00:25]}  Rb7 {[%clk 0:01:19]} 31. Bxb8 {[%clk 0:00:25]}  Rxb8 {[%clk 0:01:19]} 32. Qd4 {[%clk 0:00:24]}  Nf6 {[%clk 0:01:17]} 33. Rae1 {[%clk 0:00:17]}  h6 {[%clk 0:01:14]} 34. c3 {[%clk 0:00:17]}  Ng4 {[%clk 0:01:09]} 35. Rf4 {[%clk 0:00:18]}  Ne5 {[%clk 0:01:08]} 36. Kg2 {[%clk 0:00:18]}  Rf8 {[%clk 0:01:06]} 37. Rxf8+ {[%clk 0:00:16]}  Kxf8 {[%clk 0:01:05]} 38. Qc5+ {[%clk 0:00:17]}  Kg8 {[%clk 0:01:05]} 39. Qa7 {[%clk 0:00:16]}  Nd3 {[%clk 0:01:04]} 40. Rf1 {[%clk 0:00:17]}  e3 {[%clk 0:01:02]} 41. Qb8+ {[%clk 0:00:15]}  Kh7 {[%clk 0:01:01]} 42. Rf8 {[%clk 0:00:13]}  e2 {[%clk 0:00:59]} 43. Re8 {[%clk 0:00:09]}  e1=Q {[%clk 0:00:47]} 44. Rxe6 {[%clk 0:00:09]}  Qxe6 {[%clk 0:00:46]} 45. Qb6 {[%clk 0:00:08]}  Qe2+ {[%clk 0:00:42]} 46. Kh3 {[%clk 0:00:08]}  Qf1+ {[%clk 0:00:40]} 47. Kg4 {[%clk 0:00:08]}  Ne5+ {[%clk 0:00:38]} 48. Kh4 {[%clk 0:00:08]}  Ng6+ {[%clk 0:00:36]} 49. Kg4 {[%clk 0:00:08]}  Qd1+ {[%clk 0:00:30]} 50. Kh3 {[%clk 0:00:05]}  Qxa4 {[%clk 0:00:29]} 51. Qd4 {[%clk 0:00:04]}  Qc2 {[%clk 0:00:26]} 52. b5 {[%clk 0:00:02]}  axb5 {[%clk 0:00:25]} 53. Qc5 {[%clk 0:00:02]}  Qf5+ {[%clk 0:00:22]} 54. Kg2 {[%clk 0:00:03]}  Ne5 {[%clk 0:00:21]} 55. Qd4 {[%clk 0:00:01]}  Qf3+ {[%clk 0:00:20]} 56. Kh3 {[%clk 0:00:02]}  Ng6 {[%clk 0:00:15]} 57. Qc5 {[%clk 0:00:02]}  Qf5+ {[%clk 0:00:14]} 58. Kg2 {[%clk 0:00:02]}  Qe4+ {[%clk 0:00:14]} 59. Kh3 {[%clk 0:00:03]}  Qc4 {[%clk 0:00:15]} 60. Qd6 {[%clk 0:00:02]}  Qxc3 {[%clk 0:00:14]} 61. Kg4 {[%clk 0:00:03]}  Qf6 {[%clk 0:00:13]} 62. Qb4 {[%clk 0:00:03]}  Qe5 {[%clk 0:00:10]} 63. Kh3 {[%clk 0:00:03]}  Qe4 {[%clk 0:00:11]} 64. Qd6 {[%clk 0:00:03]}  d4 {[%clk 0:00:10]} 65. Qc5 {[%clk 0:00:02]}  d3 {[%clk 0:00:10]} 66. Qxc6 {[%clk 0:00:03]}  Qxc6 {[%clk 0:00:10]} 0-1


[Site "https://www.chess.com"]

[Event "Titled Tuesday Blitz December 13 Early 2022"]
[White "Simonovic, Miroslav"]
[Black "Mitrovic, Darko R"]
[WhiteFideId "919152"]
[BlackFideId "927023"]
[WhiteElo "2057"]
[BlackElo "2150"]
[Result "1-0"]
[Round "06"]
[TimeControl "180+1"]
[Date "2022.12.14"]
[WhiteClock "0:00:45"]
[BlackClock "0:00:02"]

1. d4 {[%clk 0:02:58]}  Nf6 {[%clk 0:02:55]} 2. Bg5 {[%clk 0:02:59]}  e6 {[%clk 0:02:54]} 3. e4 {[%clk 0:02:58]}  h6 {[%clk 0:02:54]} 4. Bxf6 {[%clk 0:02:59]}  Qxf6 {[%clk 0:02:54]} 5. Qd3 {[%clk 0:02:59]}  d5 {[%clk 0:02:47]} 6. e5 {[%clk 0:02:58]}  Qd8 {[%clk 0:02:35]} 7. Nd2 {[%clk 0:02:57]}  c5 {[%clk 0:02:35]} 8. dxc5 {[%clk 0:02:54]}  Bxc5 {[%clk 0:02:28]} 9. Nb3 {[%clk 0:02:42]}  Bb6 {[%clk 0:02:21]} 10. f4 {[%clk 0:02:25]}  Nc6 {[%clk 0:01:53]} 11. Nf3 {[%clk 0:02:22]}  Bd7 {[%clk 0:01:50]} 12. a3 {[%clk 0:02:19]}  Rc8 {[%clk 0:01:48]} 13. O-O-O {[%clk 0:02:18]}  O-O {[%clk 0:01:34]} 14. Kb1 {[%clk 0:02:09]}  Na5 {[%clk 0:01:09]} 15. Nxa5 {[%clk 0:02:00]}  Bxa5 {[%clk 0:01:09]} 16. Nd4 {[%clk 0:02:01]}  a6 {[%clk 0:01:05]} 17. g4 {[%clk 0:01:59]}  b5 {[%clk 0:01:03]} 18. c3 {[%clk 0:01:52]}  Bb6 {[%clk 0:00:59]} 19. f5 {[%clk 0:01:48]}  Bxd4 {[%clk 0:00:41]} 20. cxd4 {[%clk 0:01:47]}  b4 {[%clk 0:00:26]} 21. axb4 {[%clk 0:01:40]}  Rb8 {[%clk 0:00:13]} 22. Qxa6 {[%clk 0:01:08]}  Rxb4 {[%clk 0:00:12]} 23. Rd2 {[%clk 0:01:09]}  Qg5 {[%clk 0:00:08]} 24. Qd3 {[%clk 0:01:04]}  exf5 {[%clk 0:00:06]} 25. Qc3 {[%clk 0:01:02]}  Rfb8 {[%clk 0:00:05]} 26. gxf5 {[%clk 0:01:01]}  Bxf5+ {[%clk 0:00:05]} 27. Bd3 {[%clk 0:01:01]}  Bxd3+ {[%clk 0:00:04]} 28. Qxd3 {[%clk 0:01:01]}  Qg6 {[%clk 0:00:03]} 29. Qxg6 {[%clk 0:01:00]}  fxg6 {[%clk 0:00:03]} 30. Rc1 {[%clk 0:00:54]}  Ra8 {[%clk 0:00:02]} 31. Rc5 {[%clk 0:00:51]}  Rd8 {[%clk 0:00:02]} 32. Kc2 {[%clk 0:00:47]}  g5 {[%clk 0:00:02]} 33. Kc3 {[%clk 0:00:47]}  Rb6 {[%clk 0:00:02]} 34. b4 {[%clk 0:00:47]}  g4 {[%clk 0:00:02]} 35. Ra2 {[%clk 0:00:45]} 1-0


[Site "https://www.chess.com"]

[Event "Titled Tuesday Blitz December 13 Early 2022"]
[White "Skuhala, Barbara"]
[Black "Fabris, Alberto"]
[WhiteFideId "14605465"]
[BlackFideId "801348"]
[WhiteElo "2137"]
[BlackElo "2176"]
[Result "1-0"]
[Round "06"]
[TimeControl "180+1"]
[Date "2022.12.14"]
[WhiteClock "0:00:54"]
[BlackClock "0:00:11"]

1. e4 {[%clk 0:03:00]}  c5 {[%clk 0:02:59]} 2. Nf3 {[%clk 0:03:00]}  d6 {[%clk 0:02:59]} 3. d4 {[%clk 0:02:59]}  cxd4 {[%clk 0:03:00]} 4. Nxd4 {[%clk 0:02:57]}  Nf6 {[%clk 0:03:00]} 5. f3 {[%clk 0:02:56]}  e5 {[%clk 0:02:58]} 6. Nb3 {[%clk 0:02:54]}  d5 {[%clk 0:02:58]} 7. Bg5 {[%clk 0:02:52]}  dxe4 {[%clk 0:02:52]} 8. Qxd8+ {[%clk 0:02:49]}  Kxd8 {[%clk 0:02:53]} 9. Bxf6+ {[%clk 0:02:46]}  gxf6 {[%clk 0:02:52]} 10. fxe4 {[%clk 0:02:46]}  f5 {[%clk 0:02:52]} 11. Nc3 {[%clk 0:02:44]}  Bb4 {[%clk 0:02:43]} 12. O-O-O+ {[%clk 0:02:42]}  Ke8 {[%clk 0:02:41]} 13. Nd5 {[%clk 0:02:42]}  Bd6 {[%clk 0:02:39]} 14. exf5 {[%clk 0:02:37]}  Bxf5 {[%clk 0:02:35]} 15. Ne3 {[%clk 0:02:35]}  Bxc2 {[%clk 0:02:05]} 16. Kxc2 {[%clk 0:02:32]}  Be7 {[%clk 0:02:02]} 17. Nd5 {[%clk 0:02:32]}  Bd8 {[%clk 0:01:58]} 18. Bb5+ {[%clk 0:02:31]}  Nc6 {[%clk 0:01:53]} 19. Rhe1 {[%clk 0:02:31]}  f6 {[%clk 0:01:52]} 20. Rf1 {[%clk 0:02:29]}  Rf8 {[%clk 0:01:45]} 21. Kb1 {[%clk 0:02:23]}  Rc8 {[%clk 0:01:43]} 22. Bxc6+ {[%clk 0:02:19]}  bxc6 {[%clk 0:01:39]} 23. Ne3 {[%clk 0:02:19]}  Bb6 {[%clk 0:01:34]} 24. Nf5 {[%clk 0:02:19]}  Rd8 {[%clk 0:01:27]} 25. a4 {[%clk 0:02:13]}  a5 {[%clk 0:01:14]} 26. Rc1 {[%clk 0:01:58]}  Kd7 {[%clk 0:01:09]} 27. Nc5+ {[%clk 0:01:55]}  Bxc5 {[%clk 0:01:07]} 28. Rxc5 {[%clk 0:01:55]}  Rc8 {[%clk 0:00:53]} 29. Rxa5 {[%clk 0:01:55]}  Ke6 {[%clk 0:00:49]} 30. g4 {[%clk 0:01:50]}  Ra8 {[%clk 0:00:46]} 31. Rc5 {[%clk 0:01:45]}  Rfc8 {[%clk 0:00:39]} 32. Rfc1 {[%clk 0:01:42]}  Rxa4 {[%clk 0:00:29]} 33. Rxc6+ {[%clk 0:01:38]}  Rxc6 {[%clk 0:00:30]} 34. Rxc6+ {[%clk 0:01:19]}  Kf7 {[%clk 0:00:26]} 35. h3 {[%clk 0:01:17]}  h5 {[%clk 0:00:21]} 36. Rc7+ {[%clk 0:01:14]}  Kf8 {[%clk 0:00:19]} 37. Rc6 {[%clk 0:01:11]}  Kf7 {[%clk 0:00:18]} 38. gxh5 {[%clk 0:01:08]}  Rf4 {[%clk 0:00:17]} 39. Nh6+ {[%clk 0:01:05]}  Kg7 {[%clk 0:00:16]} 40. Ng4 {[%clk 0:01:03]}  e4 {[%clk 0:00:14]} 41. Kc2 {[%clk 0:01:02]}  f5 {[%clk 0:00:14]} 42. Ne5 {[%clk 0:00:59]}  Rh4 {[%clk 0:00:13]} 43. h6+ {[%clk 0:00:57]}  Kh7 {[%clk 0:00:12]} 44. Nf7 {[%clk 0:00:54]}  Rxh3 {[%clk 0:00:11]} 45. Ng5+ {[%clk 0:00:54]} 1-0


[Site "https://www.chess.com"]